bitfinex-derivatives/quotes_ETHF0:USTF0_20251013
["timestamp","ask_amount","ask_price","bid_price","bid_amount"]
[1760355378012,2.16231,4085.2,4085.1,3.2078]
[1760355378314,2.16231,4085.2,4085.1,3.4918]
[1760355379410,1.7221,4085.8,4085.1,3.4918]
[1760355379610,0.44021,4085.3,4085.1,3.4918]
[1760355379911,1.7221,4085.8,4085.1,3.4918]
[1760355379912,0.44019,4085.5,4085.2,1.718]
[1760355380114,2.16229,4085.5,4085.3,0.284]
[1760355380314,1.7221,4085.4,4085.3,0.284]
[1760355381517,0.44019,4085.5,4085.3,0.284]
[1760355381818,1.7221,4085.4,4085.3,0.284]
[1760355382115,0.44019,4085.5,4085.3,0.284]
[1760355382312,1.7221,4085.4,4085.1,3.2078]
[1760355382520,1.7221,4085.4,4083.7,3.2078]
[1760355382521,2.16236,4084.8,4083.7,3.2078]
[1760355382809,0.44033,4084.1,4084.0,0.283]
[1760355383008,2.16243,4084.1,4084.0,0.283]
[1760355383509,2.16243,4084.1,4083.8,40.8]
[1760355383510,0.44043,4083.2,4083.1,3.2078]
[1760355383710,0.44052,4082.4,4081.9,3.2078]
[1760355383918,0.0021996,4082.4,4082.1,1.718]
[1760355384107,2.1648196,4082.4,4082.2,0.283]
[1760355384307,2.16263,4082.3,4082.0,40.8]
[1760355384504,2.16263,4082.3,4082.1,0.283]
[1760355384708,1.7221,4082.2,4082.1,0.283]
[1760355385119,2.4032,4082.0,4081.9,0.00192418]
[1760355388319,0.283,4082.3,4081.9,3.20972418]
[1760355388320,1.7221,4082.3,4081.9,3.20972418]
[1760355388517,1.7221,4082.3,4082.0,0.283]
[1760355388718,0.0021996,4082.4,4082.3,2.15853]
[1760355389025,0.0021996,4082.4,4082.3,2.44153]
[1760355389218,0.0021996,4082.4,4082.3,42.801]
[1760355389424,1.7242996,4082.4,4082.3,40.8]
[1760355389625,1.7242996,4082.4,4082.3,41.083]
[1760355390323,0.0021996,4082.4,4082.3,41.083]
[1760355390521,1.7242996,4082.4,4082.3,41.083]
[1760355392220,0.0021996,4082.4,4082.3,41.083]
[1760355392820,0.0021996,4082.4,4082.3,42.801]
[1760355393024,0.0021996,4082.4,4082.3,41.083]
[1760355393223,1.7242996,4082.4,4082.3,41.083]
[1760355393519,0.0021996,4082.4,4082.3,40.8]
[1760355393719,0.0021996,4082.4,4082.3,42.518]
[1760355393918,0.0021996,4082.4,4082.3,42.801]
[1760355394123,1.7242996,4082.4,4082.3,41.083]
[1760355394418,1.7242996,4082.4,4082.3,40.8]
[1760355394815,2.84376,4082.0,4081.9,3.20972418]
[1760355395018,2.84376,4082.0,4081.9,3.49272418]
[1760355395214,1.7221,4082.0,4081.9,3.49272418]
[1760355395424,1.7221,4082.0,4081.9,44.29272418]
[1760355396019,0.0021996,4082.4,4082.2,0.44053]
[1760355396223,0.0021996,4082.4,4082.3,2.001]
[1760355396929,1.7221,4082.3,4082.1,0.44054]
[1760355397118,0.0021996,4082.4,4082.3,2.15853]
[1760355397314,1.7221,4082.3,4082.2,0.283]
[1760355397522,0.4427196,4082.4,4082.2,0.283]
[1760355397823,2.16263,4082.3,4081.9,44.45028418]
[1760355398028,1.7221,4082.2,4082.1,0.44055]
[1760355398219,1.7221,4082.2,4082.1,0.72255]
[1760355398424,0.0021996,4082.4,4082.3,2.15853]
[1760355398626,0.0021996,4082.4,4082.3,2.44053]
[1760355399326,0.0021996,4082.4,4082.3,0.72253]
[1760355399627,0.0021996,4082.4,4082.3,2.44053]
[1760355399820,1.7221,4083.5,4082.7,1.718]
[1760355400015,1.7221,4083.5,4083.1,4.9258]
[1760355400016,0.44043,4083.2,4083.1,4.9258]
[1760355400221,0.44038,4083.7,4083.1,3.4898]
[1760355400526,1.7221,4084.6,4083.6,3.2078]
[1760355400724,0.00194838,4084.5,4084.3,0.4403]
[1760355400917,0.00194838,4084.5,4084.1,3.2078]
[1760355400918,0.00194838,4084.5,4084.4,2.0]
[1760355401528,0.00194838,4084.5,4084.4,0.282]
[1760355402023,0.6811,4085.5,4084.4,2.0]
[1760355402225,3.2078,4085.9,4085.1,3.2078]
[1760355402226,0.4402,4085.4,4085.1,3.2078]
[1760355402420,1.7221,4085.8,4085.2,0.282]
[1760355402726,0.44019,4085.5,4085.2,0.282]
[1760355402915,0.4402,4085.4,4085.2,0.282]
[1760355403119,2.16449995,4085.4,4085.3,0.282]
[1760355403319,2.16449995,4085.4,4085.3,17.4416]
[1760355403514,2.16449995,4085.4,4082.6,0.78540179]
[1760355403515,11.00982,4083.6,4082.6,0.78540179]
[1760355403814,11.00982,4083.6,4081.0,0.7065]
[1760355403815,0.44055,4082.1,4082.0,0.282]
[1760355404017,3.63735,4082.1,4082.0,1.83720643]
[1760355404215,6.85283968,4082.1,4082.0,1.83720643]
[1760355404431,3.64009195,4082.1,4082.0,1.83916732]
[1760355404618,0.00274195,4082.1,4082.0,6.34669622]
[1760355405021,3.65109195,4082.1,4082.0,1.71996089]
[1760355405325,3.65109195,4082.1,4082.0,2.00196089]
[1760355405527,3.65109195,4082.1,4082.0,0.92707089]
[1760355405823,3.65109195,4082.1,4082.0,1.20907089]
[1760355406125,0.44066,4081.1,4081.0,0.7065]
[1760355406322,3.64846,4081.1,4081.0,5.49254865]
[1760355406523,3.64846,4081.1,4081.0,0.282]
[1760355407230,3.64846,4081.1,4081.0,0.28389216]
[1760355407425,3.64846,4081.1,4081.0,0.00189216]
[1760355407627,3.64846,4081.1,4081.0,0.28389216]
[1760355407825,3.64846,4081.1,4081.0,0.00189216]
[1760355408129,3.64846,4081.1,4081.0,1.86159216]
[1760355408523,3.64846,4081.1,4081.0,2.14359216]
[1760355409028,6.44763863,4081.1,4080.0,2.5662]
[1760355409223,3.64856,4080.1,4080.0,2.5662]
[1760355409422,3.64856,4080.1,4080.0,2.56968025]
[1760355409725,3.64856,4080.1,4080.0,2.85168025]
[1760355410022,3.64856,4080.1,4080.0,7.35771044]
[1760355410820,0.44076,4080.1,4080.0,7.35771044]
[1760355411030,0.44076,4080.2,4080.0,5.21601044]
[1760355411225,0.44076,4080.2,4080.1,6.6492289]
[1760355411723,0.44076,4080.2,4080.1,6.64574865]
[1760355412036,0.44076,4080.2,4080.0,0.70848154]
[1760355412037,0.44076,4080.2,4080.0,0.00198154]
[1760355412222,0.44076,4080.2,4080.1,0.282]
[1760355412424,0.44076,4080.2,4080.0,0.00198154]
[1760355412729,0.44076,4080.2,4080.1,0.282]
[1760355413122,0.44076,4080.2,4080.0,0.00198154]
[1760355413323,1.10214,4079.3,4078.4,5.0675]
[1760355413528,0.44094,4078.5,4078.3,0.00348025]
[1760355413829,3.14555351,4078.4,4078.3,0.28548025]
[1760355414027,3.58650351,4078.4,4078.3,2.14518025]
[1760355414333,0.00227159,4078.4,4078.3,6.65450105]
[1760355414526,0.00227159,4078.4,4078.3,6.37250105]
[1760355414828,0.00227159,4078.4,4078.3,6.65450105]
[1760355415426,0.00227159,4078.4,4078.3,6.6510208]
[1760355415626,3.2078,4079.1,4078.8,0.7343]
[1760355415627,0.44089,4079.0,4078.8,0.7343]
[1760355415823,0.44089,4079.0,4078.9,2.14518025]
[1760355416023,0.44089,4079.0,4078.9,6.6492289]
[1760355416225,0.44089,4079.0,4078.9,1.8597]
[1760355416434,0.44089,4079.0,4078.9,2.1407]
[1760355416622,0.00194267,4079.0,4078.3,1.8614919]
[1760355416821,0.44092,4078.7,4078.5,1.8597]
[1760355417021,0.00194267,4079.0,4078.9,1.8597]
[1760355417419,0.00194267,4079.0,4078.9,2.14418025]
[1760355417625,0.00194267,4079.0,4078.9,6.6482289]
[1760355417822,0.44091,4078.7,4078.6,1.84209]
[1760355418120,0.44103,4077.6,4077.5,0.281]
[1760355418321,3.2078,4077.6,4077.5,2.1407]
[1760355418531,3.2078,4077.6,4077.5,2.16701493]
[1760355418926,3.2078,4077.6,4077.5,2.16948166]
[1760355419126,3.2078,4077.6,4077.5,1.86216673]
[1760355419328,6.41083741,4077.6,4077.5,0.28346673]
[1760355419531,6.41083741,4077.6,4077.5,0.00246673]
[1760355419841,0.44115,4076.5,4076.4,2.594]
[1760355420130,3.64895,4076.5,4076.4,2.875]
[1760355420531,3.64895,4076.5,4075.8,2.594]
[1760355420532,0.44122,4075.9,4075.8,2.594]
[1760355420727,0.44127,4075.4,4075.3,1.8597]
[1760355420932,0.44127,4075.5,4075.4,1.8597]
[1760355421128,3.1719921,4075.4,4075.3,0.28357234]
[1760355421334,6.89343332,4075.5,4075.3,0.00257234]
[1760355421525,3.64907,4075.5,4075.3,0.00257234]
[1760355421721,3.64907,4075.5,4075.4,0.281]
[1760355421935,0.00208874,4075.9,4075.4,0.30731493]
[1760355422233,0.00208874,4075.9,4075.3,0.00257234]
[1760355422431,0.44124,4075.8,4075.5,1.8597]
[1760355422628,0.00208874,4075.9,4075.8,0.7343]
[1760355422831,2.20443,4079.1,4076.5,1.8597]
[1760355422832,3.18357381,4076.6,4076.5,1.8597]
[1760355423038,3.18357381,4076.6,4076.5,2.1407]
[1760355423334,3.18357381,4076.6,4076.5,0.281]
[1760355423335,3.62472381,4076.6,4076.5,0.281]
[1760355423931,3.18555227,4076.6,4076.5,2.1407]
[1760355424734,3.22158441,4076.6,4076.5,2.1407]
[1760355425233,3.2078,4077.1,4077.0,3.0351]
[1760355425438,3.2078,4077.7,4077.6,0.7343]
[1760355425637,3.2078,4077.7,4077.1,1.8597]
[1760355425833,3.64888,4077.2,4077.0,0.7343]
[1760355426028,0.44113,4076.7,4076.6,1.8597]
[1760355426234,3.59063093,4077.1,4076.6,0.281]
[1760355426430,3.59299612,4077.1,4076.6,0.281]
[1760355426933,0.44111,4076.9,4076.6,0.281]
[1760355427134,3.2078,4076.7,4076.6,0.281]
[1760355427326,3.2078,4076.7,4076.6,2.1407]
[1760355427733,0.00236519,4077.1,4077.0,0.7343]
[1760355427933,0.00236519,4077.1,4077.0,2.875]
[1760355428434,0.00236519,4077.1,4077.0,2.594]
[1760355428629,0.00236519,4077.1,4077.0,2.875]
[1760355430144,0.00236519,4077.1,4077.0,2.594]
[1760355430430,0.00236519,4077.1,4077.0,2.875]
[1760355433643,0.00236519,4077.1,4077.0,6.0828]
[1760355433832,3.2078,4078.7,4078.5,0.7343]
[1760355434033,3.2078,4078.7,4078.6,2.1407]
[1760355434232,3.2078,4078.7,4078.6,2.58163]
[1760355434435,3.2078,4078.7,4078.6,2.1407]
[1760355434636,0.44093,4078.6,4078.5,0.7343]
[1760355434934,0.44093,4078.6,4076.8,1.1028]
[1760355434935,0.44103,4077.6,4077.5,2.594]
[1760355435135,3.2078,4077.6,4077.5,2.87789856]
[1760355435339,3.2078,4077.6,4077.5,2.59689856]
[1760355435540,3.2078,4077.6,4077.5,2.87789856]
[1760355435739,3.2078,4077.6,4077.5,2.59689856]
[1760355435933,0.44109,4077.1,4076.7,1.9698]
[1760355436132,0.44112,4076.8,4076.7,1.9698]
[1760355436337,0.44112,4076.8,4076.7,2.2508]
[1760355437034,0.44112,4076.8,4076.7,1.97237543]
[1760355437332,0.44112,4076.8,4076.7,2.25337543]
[1760355437532,0.44112,4076.8,4076.7,0.28357543]
[1760355437737,4.32212391,4076.8,4076.7,0.00257543]
[1760355437936,0.44123,4075.8,4075.5,2.7572]
[1760355438134,1.10289,4076.5,4075.5,2.7572]
[1760355438135,3.2078,4075.6,4075.5,2.7572]
[1760355438334,3.2078,4075.6,4075.5,3.0372]
[1760355438737,3.8315652,4075.6,4075.5,2.7572]
[1760355438940,3.83448928,4075.6,4075.5,1.06933871]
[1760355439134,3.86793536,4075.6,4075.5,2.75913871]
[1760355439341,7.00298546,4075.6,4075.5,0.00193871]
[1760355439836,0.44138,4074.4,4074.3,1.9698]
[1760355440038,0.44138,4074.4,4074.0,2.7572]
[1760355440039,0.44141,4074.2,4074.0,2.7572]
[1760355440339,0.44141,4074.2,4074.0,0.7874]
[1760355440537,0.44141,4074.2,4074.1,0.28]
[1760355440737,0.44141,4074.2,4074.1,2.25287003]
[1760355441242,0.47485608,4074.2,4074.1,2.25287003]
[1760355441639,0.03344608,4074.2,4074.1,2.25287003]
[1760355443449,0.03344608,4074.2,4074.1,1.97287003]
[1760355443944,0.03344608,4074.2,4074.1,2.25287003]
[1760355444345,0.47484608,4074.2,4074.1,2.25287003]
[1760355444544,0.03344608,4074.2,4074.1,1.97287003]
[1760355444837,0.03344608,4074.2,4074.1,2.25287003]
[1760355445039,0.03344608,4074.2,4074.1,1.97287003]
[1760355445244,0.03344608,4074.2,4074.1,2.25287003]
[1760355445642,0.03344608,4074.2,4074.1,0.00307003]
[1760355445842,0.03344608,4074.2,4073.4,0.7874]
[1760355445843,0.44148,4073.5,4073.4,0.7874]
[1760355446146,0.44148,4073.5,4073.0,1.9698]
[1760355446147,0.44152,4073.1,4073.0,1.9698]
[1760355446548,0.44154,4072.9,4072.8,0.02455313]
[1760355446739,0.44154,4072.9,4072.8,0.0269496]
[1760355446740,4.27053908,4072.9,4072.8,0.0269496]
[1760355446943,0.44163,4072.1,4072.0,2.7572]
[1760355447244,0.03344608,4072.1,4072.0,0.28]
[1760355447437,0.03344608,4072.1,4072.0,3.0372]
[1760355448045,0.03631717,4072.1,4072.0,3.03903999]
[1760355448343,0.03631717,4072.1,4072.0,2.75903999]
[1760355448647,0.03631717,4072.1,4072.0,3.03903999]
[1760355449043,1.10353,4074.2,4072.0,3.03903999]
[1760355449044,3.2078,4073.5,4073.1,1.9698]
[1760355449244,3.2078,4073.5,4073.4,1.9698]
[1760355449543,3.2078,4073.5,4073.4,2.2498]
[1760355449948,3.21005042,4073.5,4073.4,2.2498]
[1760355450149,0.00225042,4073.5,4073.4,2.2498]
[1760355450746,0.00225042,4073.5,4073.4,1.9698]
[1760355451050,0.00225042,4073.5,4073.4,2.2498]
[1760355451747,0.00225042,4073.5,4073.4,3.0372]
[1760355452144,0.00225042,4073.5,4073.4,2.7572]
[1760355452343,0.00225042,4073.5,4073.4,3.0372]
[1760355453951,0.00225042,4073.5,4073.4,2.7572]
[1760355454148,3.2078,4075.0,4074.8,0.44133]
[1760355454444,3.2078,4075.0,4074.9,2.2498]
[1760355454644,3.2078,4075.0,4074.9,1.9698]
[1760355454845,6.45942374,4075.0,4074.0,3.9952]
[1760355455052,0.4414,4074.3,4074.1,1.9698]
[1760355455241,0.44141,4074.1,4074.0,0.0028919]
[1760355455442,0.44141,4074.1,4074.0,0.2828919]
[1760355455646,3.69658623,4074.1,4074.0,0.2828919]
[1760355455850,3.69658623,4074.1,4074.0,0.0028919]
[1760355456151,3.69658623,4074.1,4074.0,0.2828919]
[1760355456453,3.69658623,4074.1,4074.0,0.0028919]
[1760355456644,3.69658623,4074.1,4074.0,0.2828919]
[1760355457152,3.25517623,4074.1,4074.0,0.2828919]
[1760355457344,3.25517623,4074.1,4074.0,2.2526919]
[1760355457551,3.25517623,4074.1,4074.0,0.2828919]
[1760355458252,3.25517623,4074.1,4074.0,0.0028919]
[1760355458451,3.25517623,4074.1,4074.0,0.2818919]
[1760355458646,3.25517623,4074.1,4073.0,3.9952]
[1760355458647,0.4415,4073.3,4073.0,3.9952]
[1760355458852,3.25517623,4074.1,4073.0,3.9952]
[1760355458853,3.64931,4073.2,4073.1,1.9698]
[1760355459149,0.44155,4072.9,4072.6,1.9698]
[1760355459451,3.16559679,4073.2,4072.7,0.279]
[1760355459647,3.2078,4073.0,4072.7,0.28098761]
[1760355459838,3.2078,4073.0,4072.8,2.2488]
[1760355460043,3.2078,4073.0,4072.9,1.9698]
[1760355460447,1.38249,4074.3,4072.9,1.9698]
[1760355460448,3.2078,4073.7,4072.9,1.9698]
[1760355460647,3.2078,4073.7,4073.1,1.9698]
[1760355460843,3.17193009,4073.6,4073.1,1.9698]
[1760355461147,3.17193009,4073.6,4073.3,1.9698]
[1760355461339,3.17193009,4073.6,4073.5,2.7572]
[1760355461544,3.17193009,4073.6,4073.0,0.7874]
[1760355461750,3.17193009,4073.6,4072.7,0.00198761]
[1760355461751,0.44155,4072.9,4072.7,0.00198761]
[1760355461941,0.44155,4072.9,4072.8,0.279]
[1760355462147,3.18622069,4072.8,4072.7,0.00198761]
[1760355462447,3.18622069,4072.8,4071.0,1.89176]
[1760355462448,1.10397,4072.5,4071.2,1.9698]
[1760355462748,1.10397,4072.5,4071.0,2.7572]
[1760355462749,0.44173,4071.2,4071.0,2.7572]
[1760355462951,0.44178,4070.7,4070.5,2.7572]
[1760355463147,0.44178,4070.7,4070.0,1.22925]
[1760355463148,3.2078,4070.7,4070.2,0.279]
[1760355463355,3.22444286,4070.6,4070.3,1.9698]
[1760355463648,3.20954752,4070.7,4070.2,0.28088489]
[1760355463853,3.20954752,4070.7,4070.3,0.279]
[1760355464553,3.65133752,4070.7,4070.4,0.7874]
[1760355464754,3.18497633,4070.6,4070.2,0.00188489]
[1760355464943,3.20954752,4070.7,4070.4,0.7874]
[1760355465148,0.00174752,4070.7,4070.6,2.41159]
[1760355465754,0.00174752,4070.7,4070.6,2.69059]
[1760355466749,6.40987698,4070.7,4070.4,0.7874]
[1760355467054,3.20954752,4070.7,4070.6,1.9386]
[1760355467455,0.00174752,4070.7,4070.6,1.9386]
[1760355468352,0.00174752,4070.7,4070.6,2.2176]
[1760355468751,3.2078,4071.7,4071.5,0.44168]
[1760355468955,3.2078,4072.2,4072.1,0.44163]
[1760355469253,3.2078,4072.2,4072.1,2.65923]
[1760355469454,3.2078,4073.0,4072.9,0.44153]
[1760355469658,3.2078,4073.0,4072.8,0.7505]
[1760355469854,3.21052425,4073.0,4072.9,2.2176]
[1760355470157,0.00272425,4073.0,4072.9,2.2176]
[1760355470854,0.00272425,4073.0,4072.9,1.9386]
[1760355471064,0.00272425,4073.0,4072.9,2.2176]
[1760355471065,3.21052425,4073.0,4072.9,2.2176]
[1760355471263,0.44161,4072.4,4072.2,2.6891]
[1760355471454,3.2078,4072.3,4071.6,2.6891]
[1760355471756,3.64947,4071.8,4071.1,5.58813]
[1760355472053,3.2078,4071.8,4071.2,0.279]
[1760355472254,3.2078,4071.8,4071.1,5.1464]
[1760355472454,0.44171,4071.4,4071.2,0.279]
[1760355472654,0.44174,4071.1,4071.0,0.7505]
[1760355472961,0.44174,4071.1,4071.0,1.0295]
[1760355473160,3.2078,4071.3,4070.5,1.9386]
[1760355473456,3.2078,4070.6,4070.5,1.9386]
[1760355473657,3.2078,4070.6,4070.5,2.2176]
[1760355474754,3.2078,4071.1,4070.7,0.44177]
[1760355474954,3.2078,4071.1,4070.6,1.9386]
[1760355475155,3.2078,4071.1,4070.7,0.279]
[1760355475355,3.2078,4071.1,4070.4,0.7505]
[1760355475356,3.64954,4071.1,4070.8,2.2176]
[1760355475554,0.44176,4070.9,4070.4,0.7505]
[1760355475760,0.44178,4070.8,4070.5,2.2176]
[1760355475960,3.2078,4070.6,4070.5,2.2176]
[1760355476157,3.2078,4070.6,4070.5,2.3804]
[1760355476360,3.2078,4071.7,4071.2,0.7505]
[1760355476567,0.4417,4071.5,4071.3,0.279]
[1760355476760,0.44171,4071.4,4070.8,1.9386]
[1760355477065,0.44171,4071.4,4070.4,4.40011]
[1760355477066,3.2078,4071.0,4070.9,2.2176]
[1760355477958,3.2078,4071.0,4070.9,1.9386]
[1760355478159,3.2078,4071.0,4070.9,0.278]
[1760355478362,3.2078,4071.0,4070.9,2.2166]
[1760355478563,3.2078,4071.0,4070.9,2.65836]
[1760355478768,3.2078,4071.5,4071.1,0.44174]
[1760355478954,3.6495,4071.5,4071.0,0.7505]
[1760355479159,3.6495,4071.5,4071.1,1.9386]
[1760355479366,3.2078,4071.5,4071.1,1.9386]
[1760355479664,3.2078,4071.5,4071.4,0.44171]
[1760355479869,1.27962725,4073.0,4071.4,0.44171]
[1760355479870,3.2078,4072.0,4071.9,2.38025]
[1760355480066,0.85399291,4073.0,4071.9,2.38025]
[1760355480067,3.21052425,4073.0,4072.3,1.9386]
[1760355480267,3.21052425,4073.0,4072.9,1.9386]
[1760355480571,3.21052425,4073.0,4072.9,2.2166]
[1760355481369,3.2078,4073.5,4073.4,0.44149]
[1760355481562,3.2078,4074.5,4074.0,0.7505]
[1760355481763,3.2078,4074.5,4074.1,2.2166]
[1760355482060,3.2078,4074.5,4072.8,0.7505]
[1760355482061,4.1066193,4074.4,4073.0,0.278]
[1760355482260,3.2078,4073.3,4073.1,1.9386]
[1760355482467,3.20956902,4073.3,4073.1,1.94078599]
[1760355482666,0.00176902,4073.3,4073.2,1.9386]
[1760355483370,0.00176902,4073.3,4073.2,2.65811]
[1760355483570,0.00176902,4073.3,4073.2,2.2166]
[1760355483767,0.00176902,4073.3,4073.1,0.00218599]
[1760355484065,0.44151,4073.2,4073.1,0.00218599]
[1760355484276,3.17478266,4073.3,4072.0,2.38024]
[1760355484463,3.64937,4072.7,4072.3,0.278]
[1760355484664,3.64937,4072.7,4072.3,2.2166]
[1760355484970,3.2078,4072.7,4072.4,1.9386]
[1760355485170,3.64937,4072.7,4072.4,1.94139449]
[1760355485365,0.44165,4072.0,4071.3,3.64951]
[1760355485566,3.2078,4072.2,4071.4,0.278]
[1760355485765,1.1039,4072.8,4071.8,1.9386]
[1760355485766,3.2078,4072.8,4071.8,1.9386]
[1760355485972,3.64936,4072.8,4071.9,0.278]
[1760355486161,3.20382293,4072.7,4072.1,0.44162]
[1760355486470,3.64539293,4072.7,4072.1,0.44376512]
[1760355486671,3.64539293,4072.7,4072.2,0.7505]
[1760355486872,0.44158,4072.6,4072.3,2.2166]
[1760355487083,3.64539293,4072.7,4072.4,0.278]
[1760355487484,3.64539293,4072.7,4072.5,1.9386]
[1760355487784,0.44151,4073.2,4072.5,2.38018]
[1760355488084,3.20956902,4073.3,4072.9,0.44153]
[1760355488389,3.20956902,4073.3,4072.3,3.2078]
[1760355488390,3.20956902,4073.3,4073.1,1.9386]
[1760355488586,0.44154,4073.0,4072.4,1.9386]
[1760355488785,3.15368998,4073.2,4072.6,2.38017]
[1760355489080,3.20956902,4073.3,4072.9,1.9386]
[1760355489282,3.20956902,4073.3,4073.2,2.38011]
[1760355490381,0.00176902,4073.3,4073.2,1.9386]
[1760355493080,3.2078,4074.5,4073.0,0.278]
[1760355493081,3.2078,4074.5,4073.5,1.9386]
[1760355493384,3.2782,4075.0,4074.6,0.44136]
[1760355493586,3.2782,4075.0,4074.8,0.44133]
[1760355493784,0.0704,4075.0,4074.9,1.9386]
[1760355493985,0.07325046,4075.0,4074.9,1.9386]
[1760355494483,0.07325046,4075.0,4074.9,5.1464]
[1760355495890,0.1136,4075.4,4075.3,0.44128]
[1760355496092,0.1136,4075.4,4075.3,2.64568]
[1760355496882,3.2078,4076.3,4076.2,2.36859]
[1760355497084,3.2078,4077.4,4076.5,1.9274]
[1760355497280,3.2078,4077.4,4077.0,1.22349]
[1760355497588,3.2078,4077.4,4077.1,0.71808]
[1760355497891,0.022,4077.8,4077.6,1.22343]
[1760355498192,0.02506843,4077.8,4077.7,2.2044]
[1760355499489,3.14233044,4077.8,4077.0,0.7824]
[1760355499792,3.2078,4077.1,4077.0,2.7098]
[1760355499985,3.64889,4077.1,4077.0,0.277]
[1760355500893,3.64889,4077.1,4077.0,2.2044]
[1760355501192,3.64889,4077.1,4077.0,0.277]
[1760355501395,3.64889,4077.1,4077.0,2.2044]
[1760355501588,3.2078,4077.1,4077.0,2.9868]
[1760355503692,3.2078,4077.1,4077.0,2.7098]
[1760355503891,3.2078,4077.1,4077.0,2.2044]
[1760355504690,3.2078,4077.1,4077.0,2.9868]
[1760355505694,3.2078,4077.1,4076.4,0.7824]
[1760355505695,0.4411,4077.0,4076.4,2.7098]
[1760355505893,3.2078,4077.1,4075.9,0.44122]
[1760355505894,0.44117,4076.4,4075.9,0.44122]
[1760355506193,3.2078,4076.6,4075.8,0.7824]
[1760355506194,3.2078,4076.6,4076.1,1.9274]
[1760355506389,3.2078,4076.6,4076.5,1.9274]
[1760355506688,3.2078,4076.6,4076.5,2.2044]
[1760355507091,3.2078,4076.6,4076.5,1.9274]
[1760355507289,3.2078,4076.6,4076.5,0.277]
[1760355507489,3.2078,4076.6,4075.9,0.44121]
[1760355507490,0.44115,4076.5,4075.9,0.44121]
[1760355507685,0.44117,4076.4,4075.9,0.44121]
[1760355507885,3.64895,4076.6,4076.0,0.71821]
[1760355508085,0.44115,4076.5,4076.2,1.9274]
[1760355508290,0.44115,4076.5,4076.0,0.44121]
[1760355508489,0.44115,4076.5,4076.4,1.9274]
[1760355508695,0.44115,4076.5,4076.4,2.2034]
[1760355508891,0.4412,4076.1,4075.9,1.9274]
[1760355509090,0.4412,4076.1,4076.0,0.276]
[1760355509295,0.4412,4076.1,4075.5,0.7824]
[1760355509296,0.44124,4075.7,4075.5,0.7824]
[1760355509801,0.44127,4075.4,4075.3,0.00183477]
[1760355509987,6.4469276,4075.6,4074.0,0.7824]
[1760355509988,0.4414,4074.3,4074.1,1.9274]
[1760355510192,0.4414,4074.3,4074.2,0.276]
[1760355510495,0.44143,4074.0,4073.5,0.7824]
[1760355510694,0.44141,4074.2,4073.6,2.2034]
[1760355510900,0.00211737,4074.2,4074.1,1.9274]
[1760355511090,0.00211737,4074.2,4074.1,2.2034]
[1760355511791,0.00211737,4074.2,4074.1,1.9274]
[1760355512093,0.00211737,4074.2,4074.1,2.2034]
[1760355513900,0.00211737,4074.2,4074.1,0.276]
[1760355514106,0.00211737,4074.2,4074.1,2.2034]
[1760355514304,0.00211737,4074.2,4074.1,2.64481]
[1760355514493,3.2078,4075.0,4074.6,1.9274]
[1760355514694,3.2078,4075.0,4074.0,5.9176]
[1760355515001,0.44144,4073.9,4073.6,0.00276672]
[1760355515201,0.44144,4073.9,4073.8,1.9274]
[1760355515396,0.44386849,4073.9,4073.8,1.9274]
[1760355515899,0.00242849,4073.9,4073.8,1.9274]
[1760355516804,0.00242849,4073.9,4073.8,5.1352]
[1760355517001,0.00242849,4073.9,4073.8,1.9274]
[1760355517205,0.00242849,4073.9,4073.8,2.2034]
[1760355517401,0.44145,4073.8,4073.6,0.00276672]
[1760355517603,0.44145,4073.8,4073.7,0.276]
[1760355518207,0.00242849,4073.9,4073.7,0.276]
[1760355518407,0.00242849,4073.9,4073.8,1.9274]
[1760355518608,0.44145,4073.8,4073.7,0.276]
[1760355518804,0.44145,4073.8,4073.6,0.00276672]
[1760355519001,3.68299642,4073.8,4073.6,0.00276672]
[1760355520909,0.44149,4073.4,4073.3,0.276]
[1760355521095,0.44156,4072.7,4072.6,1.9274]
[1760355521300,0.44159,4072.5,4072.3,3.2078]
[1760355521498,0.44159,4072.5,4072.4,0.276]
[1760355521699,1.10384,4073.0,4071.5,0.7824]
[1760355521700,3.19984809,4072.4,4071.8,3.2078]
[1760355522001,3.19984809,4072.4,4070.5,0.7824]
[1760355522002,3.2078,4072.2,4071.9,0.276]
[1760355522207,1.10418,4071.8,4070.8,3.2078]
[1760355522402,3.64954,4071.2,4071.1,0.276]
[1760355523007,3.68302039,4071.2,4071.0,0.27803912]
[1760355523217,3.24128039,4071.2,4071.1,1.9274]
[1760355523507,0.03348039,4071.2,4071.1,1.9274]
[1760355524508,0.03348039,4071.2,4071.1,2.1096]
[1760355525004,0.47522039,4071.2,4071.1,0.276]
[1760355525210,0.03348039,4071.2,4071.0,0.00203912]
[1760355525403,0.47521039,4071.2,4071.1,0.276]
[1760355525908,3.68447858,4071.2,4071.1,0.276]
[1760355526510,3.24274858,4071.2,4071.1,2.0813]
[1760355526708,0.03348039,4071.2,4071.1,2.0813]
[1760355527610,0.03348039,4071.2,4071.1,0.276]
[1760355527909,0.44174,4071.1,4071.0,0.00203912]
[1760355528307,3.63914142,4071.1,4071.0,0.00203912]
[1760355528509,0.44185,4070.1,4069.9,1.8053]
[1760355528710,0.44185,4070.1,4070.0,0.275]
[1760355529006,0.47533039,4070.1,4070.0,0.275]
[1760355529403,0.47533039,4070.1,4070.0,2.0803]
[1760355529608,0.44193,4069.3,4069.0,0.7472]
[1760355529814,0.44193,4069.3,4068.7,1.8053]
[1760355529815,3.64973,4069.3,4068.7,1.8053]
[1760355530002,3.68321039,4069.3,4068.7,1.8053]
[1760355530202,6.83146283,4069.3,4068.7,1.8053]
[1760355530403,0.442,4068.7,4068.6,0.275]
[1760355530608,0.44196,4069.1,4068.6,0.27735181]
[1760355530815,6.38953283,4069.3,4068.7,1.8053]